lending/lending_fUSD_20250210
["ID","MTS","AMOUNT","RATE_DAILY","PERIOD"]
[352650097,1739217063454,-500.0,0.00011232,2]
[352650099,1739217063464,-500.0,0.00011232,2]
[352650101,1739217063474,-500.0,0.00011232,2]
[352650103,1739217063484,-624.81,0.00011232,2]
[352650105,1739217063496,-1199.22,0.00011232,2]
[352650107,1739217063507,-1979.93,0.00011232,2]
[352650109,1739217063519,-802.65,0.00011232,2]
[352650112,1739217063530,-1405.04,0.00011232,2]
[352650114,1739217063542,-2187.78,0.00011232,2]
[352650116,1739217063556,-1056.67,0.00011232,2]
[352650118,1739217063567,-2701.47,0.00011232,2]
[352650120,1739217063578,-595.63,0.00011232,2]
[352650122,1739217063589,-500.0,0.00011232,2]
[352650124,1739217063599,-500.0,0.00011232,2]
[352650126,1739217063609,-930.08,0.00011232,2]
[352650128,1739217063619,-1147.5,0.00011232,2]
[352650130,1739217063631,-964.23,0.00011232,2]
[352650132,1739217063642,-500.0,0.00011232,2]
[352650134,1739217063652,-704.54,0.00011232,2]
[352650136,1739217063663,-500.0,0.00011232,2]
[352650138,1739217063673,-699.04,0.00011232,2]
[352650152,1739217063684,-963.91,0.00011232,2]
[352650154,1739217063821,-562.5,0.00011232,2]
[352650157,1739217063831,-1797.41,0.00011232,2]
[352650159,1739217063841,-500.0,0.00011232,2]
[352650161,1739217063852,-2947.91,0.00011232,2]
[352650163,1739217063862,-1804.58,0.00011232,2]
[352650165,1739217063872,-1036.2,0.00011232,2]
[352650167,1739217063883,-500.0,0.00011232,2]
[352650169,1739217063893,-1449.23,0.00011232,2]
[352650171,1739217063902,-742.77,0.00011232,2]
[352650173,1739217063912,-1222.64,0.00011232,2]
[352650175,1739217063922,-2002.97,0.00011232,2]
[352650177,1739217063932,-242.87518274,0.00011232,2]
[352650179,1739217063943,-500.0,0.00011232,2]
[352650181,1739217063953,-500.0,0.00011232,2]
[352650183,1739217063964,-796.24,0.00011232,2]
[352650185,1739217063974,-500.0,0.00011232,2]
[352650187,1739217063985,-645.83,0.00011232,2]
[352650189,1739217063995,-970.47,0.00011232,2]
[352650191,1739217064006,-500.0,0.00011232,2]
[352650193,1739217064016,-500.0,0.00011232,2]
[352650195,1739217064026,-625.0,0.00011232,2]
[352650197,1739217064037,-500.0,0.00011232,2]
[352650199,1739217064047,-500.0,0.00011232,2]
[352650201,1739217064056,-500.0,0.00011232,2]
[352650203,1739217064066,-716.69,0.00011232,2]
[352650205,1739217064077,-500.0,0.00011232,2]
[352650207,1739217064086,-1648.9,0.00011232,2]
[352650209,1739217064096,-500.0,0.00011232,2]
[352650211,1739217064105,-1668.82,0.00011232,2]
[352650213,1739217064115,-1844.01,0.00011232,2]
[352650215,1739217064124,-500.0,0.00011232,2]
[352650217,1739217064134,-1966.76,0.00011232,2]
[352650218,1739217064143,-608.59,0.00011232,2]
[352650220,1739217064153,-500.32,0.00011232,2]
[352650222,1739217064163,-500.0,0.00011232,2]
[352650224,1739217064172,-500.0,0.00011232,2]
[352650226,1739217064182,-500.0,0.00011232,2]
[352650228,1739217064192,-1124.71,0.00011232,2]
[352650230,1739217064202,-706.93,0.00011232,2]
[352650233,1739217064212,-500.0,0.00011232,2]
[352650235,1739217064222,-2457.08,0.00011232,2]
[352650237,1739217064231,-500.0,0.00011232,2]
[352650238,1739217064241,-1009.57,0.00011232,2]
[352650240,1739217064251,-500.0,0.00011232,2]
[352650242,1739217064261,-2032.53,0.00011232,2]
[352650244,1739217064272,-2081.61,0.00011232,2]
[352650246,1739217064282,-1156.44,0.00011232,2]
[352650248,1739217064291,-934.8,0.00011232,2]
[352650250,1739217064301,-583.33,0.00011232,2]
[352650252,1739217064310,-683.87,0.00011232,2]
[352650254,1739217064319,-810.76,0.00011232,2]
[352650256,1739217064329,-1603.74,0.00011232,2]
[352650258,1739217064339,-1979.23,0.00011232,2]
[352650260,1739217064349,-520.83,0.00011232,2]
[352650262,1739217064359,-3155.5,0.00011232,2]
[352650264,1739217064369,-2265.86,0.00011232,2]
[352650266,1739217064378,-1747.24,0.00011232,2]
[352650268,1739217064388,-2237.83,0.00011232,2]
[352650270,1739217064398,-1675.96,0.00011232,2]
[352650272,1739217064408,-500.0,0.00011232,2]
[352650275,1739217064419,-500.0,0.00011232,2]
[352650276,1739217064428,-1819.33,0.00011232,2]
[352650279,1739217064439,-541.66,0.00011232,2]
[352650281,1739217064448,-1574.7,0.00011232,2]
[352650282,1739217064458,-530.6,0.00011232,2]
[352650284,1739217064467,-837.21,0.00011232,2]
[352650286,1739217064478,-1491.31,0.00011232,2]
[352650288,1739217064487,-500.0,0.00011232,2]
[352650291,1739217064497,-500.0,0.00011232,2]
[352650293,1739217064507,-1019.21,0.00011232,2]
[352650295,1739217064518,-2726.72,0.00011232,2]
[352650297,1739217064529,-1880.79,0.00011232,2]
[352650299,1739217064539,-517.16,0.00011232,2]
[352650301,1739217064551,-1527.87,0.00011232,2]
[352650303,1739217064561,-2139.45,0.00011232,2]
[352650305,1739217064571,-500.0,0.00011232,2]
[352650307,1739217064581,-500.0,0.00011232,2]
[352650308,1739217064590,-4291.63,0.00011232,2]
[352650310,1739217064600,-1061.69,0.00011232,2]
[352650312,1739217064610,-860.76,0.00011232,2]
[352650314,1739217064621,-500.0,0.00011232,2]
[352650316,1739217064632,-2344.73,0.00011232,2]
[352650318,1739217064641,-500.0,0.00011232,2]
[352650320,1739217064651,-1443.4,0.00011232,2]
[352650322,1739217064660,-500.0,0.00011232,2]
[352650324,1739217064669,-500.0,0.00011232,2]
[352650326,1739217064679,-3176.66,0.00011232,2]
[352650328,1739217064688,-4387.49,0.00011232,2]
[352650331,1739217064701,-8593.09,0.00011232,2]
[352650333,1739217064719,-2245.56,0.00011232,2]
[352650336,1739217064737,-3099.9,0.00011232,2]
[352650337,1739217064756,-500.0,0.00011232,2]
[352650338,1739217064776,-1243.47,0.00011232,2]
[352650339,1739217064793,-500.0,0.00011232,2]
[352650340,1739217064811,-434.85644752,0.00011232,2]
[352650341,1739217064830,-1144.1,0.00011232,2]
[352650344,1739217064850,-500.0,0.00011232,2]
[352650346,1739217064867,-1954.77,0.00011232,2]
[352650349,1739217064886,-7758.75,0.00011232,2]
[352650352,1739217064902,-500.0,0.00011232,2]
[352650354,1739217064918,-500.0,0.00011232,2]
[352650357,1739217064936,-500.0,0.00011232,2]
[352650360,1739217064951,-500.65516432,0.00011232,2]
[352650363,1739217064969,-2839.44,0.00011232,2]
[352650365,1739217064983,-500.0,0.00011232,2]
[352650368,1739217064999,-500.0,0.00011232,2]
[352650370,1739217065017,-505.81,0.00011232,2]
[352650373,1739217065032,-2675.13,0.00011232,2]
[352650376,1739217065048,-631.34,0.00011232,2]
[352650378,1739217065063,-2178.42,0.00011232,2]
[352650381,1739217065078,-500.0,0.00011232,2]
[352650383,1739217065093,-500.0,0.00011232,2]
[352650386,1739217065109,-1372.0,0.00011232,2]
[352650388,1739217065124,-500.0,0.00011232,2]
[352650391,1739217065139,-500.0,0.00011232,2]
[352650394,1739217065155,-819.49,0.00011232,2]
[352650396,1739217065171,-151.0,0.00011232,2]
[352650399,1739217065186,-645.83,0.00011232,2]
[352650401,1739217065201,-500.0,0.00011232,2]
[352650404,1739217065217,-3308.63,0.00011232,2]
[352650407,1739217065234,-1788.99,0.00011232,2]
[352650409,1739217065249,-500.0,0.00011232,2]
[352650412,1739217065265,-500.0,0.00011232,2]
[352650415,1739217065282,-500.0,0.00011232,2]
[352650417,1739217065297,-500.63898947,0.00011232,2]
[352650420,1739217065312,-543.83,0.00011232,2]
[352650422,1739217065328,-500.0,0.00011232,2]
[352650425,1739217065343,-151.0,0.00011232,2]
[352650428,1739217065358,-1162.59,0.00011232,2]
[352650430,1739217065373,-1086.68,0.00011232,2]
[352650433,1739217065388,-500.0,0.00011232,2]
[352650435,1739217065403,-500.0,0.00011232,2]
[352650438,1739217065418,-500.0,0.00011232,2]
[352650440,1739217065434,-500.78145216,0.00011232,2]
[352650443,1739217065449,-1804.05,0.00011232,2]
[352650446,1739217065465,-5188.0,0.00011232,2]
[352650448,1739217065481,-2392.85,0.00011232,2]
[352650451,1739217065497,-590.34209813,0.00011232,2]
[352650454,1739217065513,-2313.42,0.00011232,2]
[352650456,1739217065529,-500.0,0.00011232,2]
[352650459,1739217065548,-500.0,0.00011232,2]
[352650461,1739217065566,-749.16,0.00011232,2]
[352650464,1739217065582,-500.0,0.00011232,2]
[352650467,1739217065599,-500.0,0.00011232,2]
[352650469,1739217065614,-2419.09,0.00011232,2]
[352650472,1739217065630,-500.0,0.00011232,2]
[352650474,1739217065645,-1632.19,0.00011232,2]
[352650477,1739217065661,-500.41949387,0.00011232,2]
[352650479,1739217065675,-766.68,0.00011232,2]
[352650482,1739217065693,-500.0,0.00011232,2]
[352650485,1739217065709,-2781.55,0.00011232,2]
[352650487,1739217065724,-599.54,0.00011232,2]
[352650490,1739217065740,-3815.56,0.00011232,2]
[352650493,1739217065755,-702.71,0.00011232,2]
[352650495,1739217065771,-503.69419727,0.00011232,2]
[352650498,1739217065786,-899.39,0.00011232,2]
[352650501,1739217065803,-1221.97,0.00011232,2]
[352650503,1739217065819,-500.0,0.00011232,2]
[352650506,1739217065833,-500.0,0.00011232,2]
[352650509,1739217065850,-505.32430455,0.00011232,2]
[352650511,1739217065865,-609.96,0.00011232,2]
[352650514,1739217065879,-3066.98,0.00011232,2]
[352650516,1739217065896,-1855.22,0.00011232,2]
[352650519,1739217065911,-501.41618793,0.00011232,2]
[352650521,1739217065927,-568.31,0.00011232,2]
[352650524,1739217065944,-500.0,0.00011232,2]
[352650526,1739217065955,-500.0,0.00011232,2]
[352650528,1739217065966,-1154.02,0.00011232,2]
[352650530,1739217065976,-500.0,0.00011232,2]
[352650532,1739217065986,-621.93,0.00011232,2]
[352650534,1739217065996,-500.0,0.00011232,2]
[352650536,1739217066006,-1663.55,0.00011232,2]
[352650538,1739217066016,-1470.96,0.00011232,2]
[352650540,1739217066026,-500.0,0.00011232,2]
[352650542,1739217066036,-1448.93,0.00011232,2]
[352650544,1739217066046,-1691.99,0.00011232,2]
[352650569,1739217066057,-673.88,0.00011232,2]
[352650573,1739217066310,-3129.14,0.00011232,2]
[352650575,1739217066323,-500.0,0.00011232,2]
[352650577,1739217066332,-2320.87,0.00011232,2]
[352650579,1739217066343,-508.70209635,0.00011232,2]
[352650581,1739217066352,-500.0,0.00011232,2]
[352650583,1739217066362,-995.88,0.00011232,2]
[352650585,1739217066372,-2618.51,0.00011232,2]
[352650588,1739217066382,-2818.9,0.00011232,2]
[352650590,1739217066392,-993.55,0.00011232,2]
[352650592,1739217066402,-2748.46,0.00011232,2]
[352650594,1739217066411,-500.0,0.00011232,2]
[352650596,1739217066420,-500.0,0.00011232,2]
[352650598,1739217066430,-500.0,0.00011232,2]
[352650600,1739217066440,-652.35,0.00011232,2]
[352650602,1739217066450,-500.0,0.00011232,2]
[352650604,1739217066460,-1579.61,0.00011232,2]
[352650606,1739217066469,-500.0,0.00011232,2]
[352650607,1739217066478,-500.0,0.00011232,2]
[352650609,1739217066487,-2898.79,0.00011232,2]
[352650611,1739217066497,-712.02,0.00011232,2]
[352650613,1739217066507,-3025.96,0.00011232,2]
[352650615,1739217066516,-750.4,0.00011232,2]
[352650617,1739217066524,-848.72,0.00011232,2]
[352650619,1739217066534,-608.49,0.00011232,2]
[352650621,1739217066548,-500.0,0.00011232,2]
[352650623,1739217066557,-500.0,0.00011232,2]
[352650625,1739217066566,-500.0,0.00011232,2]
[352650627,1739217066576,-1361.68,0.00011232,2]
[352650629,1739217066586,-500.0,0.00011232,2]
[352650631,1739217066596,-1503.79,0.00011232,2]
[352650633,1739217066605,-1199.24,0.00011232,2]
[352650635,1739217066615,-500.0,0.00011232,2]
[352650637,1739217066630,-500.0,0.00011232,2]
[352650639,1739217066640,-224.9,0.00011232,2]
[352650641,1739217066650,-500.0,0.00011232,2]
[352650643,1739217066660,-563.09,0.00011232,2]
[352650645,1739217066669,-500.0,0.00011232,2]
[352650647,1739217066679,-500.0,0.00011232,2]
[352650649,1739217066689,-500.0,0.00011232,2]
[352650650,1739217066699,-500.0,0.00011232,2]
[352650653,1739217066709,-997.0,0.00011259,2]
[352650654,1739217066719,-500.0,0.00011259,2]
[352650656,1739217066728,-997.0,0.00011287,2]
[352650658,1739217066738,-981.94966417,0.00011287,2]
[352650660,1739217066747,-513.41187259,0.0001129,2]
[352650662,1739217066757,-997.0,0.00011314,2]
[352650664,1739217066768,-11971.19496354,0.00011329,2]
[352650665,1739217066778,-161.383737,0.00011329,2]
[352650666,1739217066788,-161.383737,0.00011329,2]
[352650667,1739217066799,-346.2314276,0.0001134,2]
[352650668,1739217066809,-997.0,0.00011342,2]
[352650669,1739217066820,-997.0,0.00011369,2]
[352650670,1739217066830,-161.383737,0.00011369,2]
[352650671,1739217066839,-161.383737,0.00011369,2]
[352650672,1739217066849,-641.621339,0.00011369,2]
[352650674,1739217066859,-563.348585,0.00011369,2]
[352650676,1739217066869,-151.0,0.00011369,2]
[352650678,1739217066879,-500.0,0.00011369,2]
[352650680,1739217066889,-500.0,0.00011369,2]
[352650682,1739217066899,-500.0,0.00011369,2]
[352650684,1739217066909,-500.0,0.00011369,2]
[352650686,1739217066919,-500.0,0.00011369,2]
[352650688,1739217066929,-500.0,0.00011369,2]
[352650690,1739217066938,-500.0,0.00011369,2]
[352650692,1739217066948,-500.0,0.00011369,2]
[352650694,1739217066958,-500.0,0.00011369,2]
[352650696,1739217066969,-500.0,0.00011369,2]
[352650698,1739217066979,-500.0,0.00011369,2]
[352650700,1739217066988,-500.0,0.00011369,2]
[352650702,1739217066998,-500.0,0.00011369,2]
[352650704,1739217067008,-500.0,0.00011369,2]
[352650706,1739217067018,-500.0,0.00011369,2]
[352650708,1739217067028,-500.0,0.00011369,2]
[352650710,1739217067038,-500.0,0.00011369,2]
[352650712,1739217067047,-500.0,0.00011369,2]
[352650714,1739217067057,-500.0,0.00011369,2]
[352650716,1739217067067,-500.0,0.00011369,2]
[352650718,1739217067077,-500.0,0.00011369,2]
[352650720,1739217067087,-541.12,0.00011369,2]
[352650722,1739217067097,-597.05,0.00011369,2]
[352650724,1739217067106,-500.0,0.00011369,2]
[352650726,1739217067116,-500.0,0.00011369,2]
[352650728,1739217067125,-500.0,0.00011369,2]
[352650730,1739217067134,-500.0,0.00011369,2]
[352650732,1739217067147,-500.0,0.00011369,2]
[352650734,1739217067157,-500.0,0.00011369,2]
[352650736,1739217067167,-500.0,0.00011369,2]
[352650738,1739217067177,-500.0,0.00011369,2]
[352650740,1739217067188,-500.0,0.00011369,2]
[352650742,1739217067198,-500.0,0.00011369,2]
[352650744,1739217067207,-500.0,0.00011369,2]
[352650746,1739217067217,-500.0,0.00011369,2]
[352650748,1739217067226,-502.57,0.00011369,2]
[352650750,1739217067236,-1200.0,0.00011369,2]
[352650751,1739217067245,-500.0,0.00011369,2]
[352650753,1739217067255,-500.0,0.00011369,2]
[352650755,1739217067264,-500.0,0.00011369,2]
[352650757,1739217067274,-500.0,0.00011369,2]
[352650759,1739217067284,-545.50166104,0.00011369,2]
[352650761,1739217067293,-275.01384469,0.00011369,2]
[352650764,1739217067303,-531.44,0.00011369,2]
[352650766,1739217067313,-189.17225587,0.00011369,2]
[352650767,1739217067323,-500.0,0.00011369,2]
[352650769,1739217067332,-500.0,0.00011369,2]
[352650771,1739217067342,-810.48,0.00011369,2]
[352650773,1739217067351,-500.0,0.00011369,2]
[352650775,1739217067361,-500.0,0.00011369,2]
[352650777,1739217067371,-500.0,0.00011369,2]
[352650779,1739217067381,-500.0,0.00011369,2]
[352650781,1739217067391,-500.0,0.00011369,2]
[352650783,1739217067400,-500.0,0.00011369,2]
[352650785,1739217067410,-500.0,0.00011369,2]
[352650787,1739217067420,-512.43,0.00011369,2]
[352650789,1739217067430,-500.0,0.00011369,2]
[352650791,1739217067439,-500.0,0.00011369,2]
[352650793,1739217067450,-609.09,0.00011369,2]
[352650795,1739217067460,-500.0,0.00011369,2]
[352650797,1739217067469,-500.0,0.00011369,2]
[352650799,1739217067479,-500.0,0.00011369,2]
[352650801,1739217067489,-745.2,0.00011369,2]
[352650803,1739217067499,-500.0,0.00011369,2]
[352650805,1739217067509,-500.0,0.00011369,2]
[352650807,1739217067519,-820.08,0.00011369,2]
[352650809,1739217067528,-500.0,0.00011369,2]
[352650811,1739217067538,-196.93348348,0.00011369,2]
[352650813,1739217067551,-500.0,0.00011369,2]
[352650815,1739217067560,-500.0,0.00011369,2]
[352650817,1739217067570,-1862.78,0.00011369,2]
[352650819,1739217067579,-500.0,0.00011369,2]
[352650821,1739217067589,-991.22,0.00011369,2]
[352650823,1739217067599,-500.0,0.00011369,2]
[352650824,1739217067608,-500.0,0.00011369,2]
[352650827,1739217067619,-951.4,0.00011369,2]
[352650829,1739217067629,-874.12,0.00011369,2]
[352650831,1739217067639,-591.78,0.00011369,2]
[352650832,1739217067649,-1448.37,0.00011369,2]
[352650834,1739217067658,-500.0,0.00011369,2]
[352650836,1739217067668,-572.87,0.00011369,2]
[352650838,1739217067677,-1014.74,0.00011369,2]
[352650840,1739217067686,-500.0,0.00011369,2]
[352650842,1739217067695,-1242.07,0.00011369,2]
[352650844,1739217067704,-500.0,0.00011369,2]
[352650846,1739217067714,-500.0,0.00011369,2]
[352650848,1739217067723,-589.74,0.00011369,2]
[352650850,1739217067732,-590.4095567,0.00011369,2]
[352650852,1739217067742,-500.0,0.00011369,2]
[352650854,1739217067752,-293.77079974,0.00011369,2]
[352650856,1739217067762,-500.0,0.00011369,2]
[352650858,1739217067772,-500.0,0.00011369,2]
[352650860,1739217067781,-500.0,0.00011369,2]
[352650862,1739217067791,-500.0,0.00011369,2]
[352650864,1739217067800,-549.56,0.00011369,2]
[352650866,1739217067811,-682.19,0.00011369,2]
[352650868,1739217067820,-500.0,0.00011369,2]
[352650870,1739217067830,-500.0,0.00011369,2]
[352650872,1739217067839,-628.64,0.00011369,2]
[352650874,1739217067849,-500.0,0.00011369,2]
[352650876,1739217067859,-500.0,0.00011369,2]
[352650878,1739217067868,-500.0,0.00011369,2]
[352650880,1739217067878,-500.0,0.00011369,2]
[352650882,1739217067888,-910.68,0.00011369,2]
[352650884,1739217067898,-718.31,0.00011369,2]
[352650886,1739217067908,-1094.62,0.00011369,2]
[352650888,1739217067919,-500.0,0.00011369,2]
[352650890,1739217067929,-758.66,0.00011369,2]
[352650892,1739217067939,-500.0,0.00011369,2]
[352650894,1739217067949,-846.94,0.00011369,2]
[352650896,1739217067958,-478.04420244,0.00011369,2]
[352650898,1739217067968,-923.59,0.00011369,2]
[352650900,1739217067977,-500.0,0.00011369,2]
[352650902,1739217067987,-500.0,0.00011369,2]
[352650904,1739217067997,-528.7,0.00011369,2]
[352650906,1739217068007,-942.9,0.00011369,2]
[352650908,1739217068016,-813.51,0.00011369,2]
[352650910,1739217068025,-500.0,0.00011369,2]
[352650912,1739217068035,-500.0,0.00011369,2]
[352650914,1739217068044,-500.0,0.00011369,2]
[352650916,1739217068054,-1170.73,0.00011369,2]
[352650918,1739217068063,-1443.11,0.00011369,2]
[352650920,1739217068073,-874.82,0.00011369,2]
[352650922,1739217068084,-500.0,0.00011369,2]
[352650924,1739217068093,-500.0,0.00011369,2]
[352650926,1739217068102,-500.0,0.00011369,2]
[352650928,1739217068111,-500.0,0.00011369,2]
[352650930,1739217068120,-828.38,0.00011369,2]
[352650932,1739217068130,-997.5,0.00011369,2]
[352650934,1739217068139,-1336.04,0.00011369,2]
[352650936,1739217068148,-1416.68,0.00011369,2]
[352650938,1739217068158,-1370.33,0.00011369,2]
[352650940,1739217068167,-626.36,0.00011369,2]
[352650942,1739217068176,-1315.41,0.00011369,2]
[352650944,1739217068187,-500.0,0.00011369,2]
[352650946,1739217068197,-500.0,0.00011369,2]
[352650948,1739217068207,-1211.22,0.00011369,2]
[352650950,1739217068217,-500.0,0.00011369,2]
[352650953,1739217068227,-505.87,0.00011369,2]
[352650955,1739217068237,-151.0,0.00011369,2]
[352650956,1739217068248,-500.0,0.00011369,2]
[352650958,1739217068258,-500.0,0.00011369,2]
[352650960,1739217068267,-726.19,0.00011369,2]
[352650962,1739217068277,-500.0,0.00011369,2]
[352650964,1739217068287,-500.0,0.00011369,2]
[352650966,1739217068297,-806.7,0.00011369,2]
[352650968,1739217068306,-260.07042158,0.00011369,2]
[352650970,1739217068315,-873.16,0.00011369,2]
[352650972,1739217068324,-500.0,0.00011369,2]
[352650974,1739217068334,-614.34071164,0.00011369,2]
[352650976,1739217068344,-504.09917917,0.00011369,2]
[352650978,1739217068353,-837.9,0.00011369,2]
[352650980,1739217068362,-831.3,0.00011369,2]
[352650982,1739217068372,-1700.07,0.00011369,2]
[352650984,1739217068382,-500.0,0.00011369,2]
[352650986,1739217068391,-526.93,0.00011369,2]
[352650988,1739217068400,-908.11,0.00011369,2]
[352650990,1739217068410,-500.0,0.00011369,2]
[352650992,1739217068420,-684.98,0.00011369,2]
[352650994,1739217068430,-710.89,0.00011369,2]
[352650996,1739217068440,-500.0,0.00011369,2]
[352650998,1739217068449,-500.0,0.00011369,2]
[352651000,1739217068459,-719.92,0.00011369,2]
[352651002,1739217068468,-869.99,0.00011369,2]
[352651004,1739217068478,-500.0,0.00011369,2]
[352651006,1739217068488,-170.71555598,0.00011369,2]
[352651008,1739217068498,-551.41,0.00011369,2]
[352651010,1739217068509,-1051.27,0.00011369,2]
[352651013,1739217068520,-500.0,0.00011369,2]
[352651015,1739217068531,-500.0,0.00011369,2]
[352651017,1739217068541,-500.0,0.00011369,2]
[352651019,1739217068557,-500.0,0.00011369,2]
[352651021,1739217068567,-166.401701,0.00011369,2]
[352651023,1739217068577,-540.44,0.00011369,2]
[352651025,1739217068587,-1096.75,0.00011369,2]
[352651026,1739217068597,-884.26,0.00011369,2]
[352651028,1739217068607,-708.33,0.00011369,2]
[352651030,1739217068617,-765.79,0.00011369,2]
[352651032,1739217068628,-500.0,0.00011369,2]
[352651034,1739217068638,-500.0,0.00011369,2]
[352651035,1739217068647,-500.0,0.00011369,2]
[352651036,1739217068657,-500.0,0.00011369,2]
[352651037,1739217068666,-500.0,0.00011369,2]
[352651038,1739217068676,-888.99,0.00011369,2]
[352651039,1739217068685,-500.0,0.00011369,2]
[352651040,1739217068694,-823.69,0.00011369,2]
[352651041,1739217068704,-500.0,0.00011369,2]
[352651042,1739217068713,-500.0,0.00011369,2]
[352651043,1739217068723,-500.0,0.00011369,2]
[352651045,1739217068733,-1307.26,0.00011369,2]
[352651047,1739217068742,-644.78,0.00011369,2]
[352651049,1739217068752,-648.7,0.00011369,2]
[352651051,1739217068761,-878.48,0.00011369,2]
[352651053,1739217068773,-1365.19,0.00011369,2]
[352651055,1739217068782,-500.0,0.00011369,2]
[352651057,1739217068791,-1292.76,0.00011369,2]
[352651058,1739217068801,-1500.35,0.00011369,2]
[352651060,1739217068812,-500.0,0.00011369,2]
[352651062,1739217068821,-828.23,0.00011369,2]
[352651064,1739217068832,-796.75,0.00011369,2]
[352651066,1739217068842,-500.0,0.00011369,2]
[352651068,1739217068852,-500.0,0.00011369,2]
[352651070,1739217068861,-500.0,0.00011369,2]
[352651072,1739217068872,-1956.77,0.00011369,2]
[352651074,1739217068882,-500.0,0.00011369,2]
[352651076,1739217068891,-500.0,0.00011369,2]
[352651078,1739217068900,-500.0,0.00011369,2]
[352651080,1739217068911,-500.0,0.00011369,2]
[352651082,1739217068920,-500.0,0.00011369,2]
[352651084,1739217068931,-500.0,0.00011369,2]
[352651086,1739217068941,-500.0,0.00011369,2]
[352651088,1739217068950,-797.43,0.00011369,2]
[352651090,1739217068960,-500.0,0.00011369,2]
[352651092,1739217068970,-503.81,0.00011369,2]
[352651093,1739217068979,-688.07,0.00011369,2]
[352651095,1739217068990,-500.0,0.00011369,2]
[352651098,1739217069000,-500.0,0.00011369,2]
[352651100,1739217069012,-1205.84,0.00011369,2]
[352651101,1739217069023,-500.0,0.00011369,2]
[352651103,1739217069035,-806.41,0.00011369,2]
[352651105,1739217069045,-500.0,0.00011369,2]
[352651107,1739217069055,-500.0,0.00011369,2]
[352651109,1739217069064,-500.0,0.00011369,2]
[352651111,1739217069073,-735.56,0.00011369,2]
[352651113,1739217069082,-500.0,0.00011369,2]
[352651115,1739217069092,-798.49,0.00011369,2]
[352651117,1739217069101,-847.34,0.00011369,2]
[352651119,1739217069110,-500.0,0.00011369,2]
[352651121,1739217069119,-548.6,0.00011369,2]
[352651123,1739217069129,-671.06,0.00011369,2]
[352651125,1739217069138,-500.0,0.00011369,2]
[352651127,1739217069147,-857.26,0.00011369,2]
[352651129,1739217069156,-805.28,0.00011369,2]
[352651131,1739217069165,-737.36,0.00011369,2]
[352651133,1739217069174,-500.0,0.00011369,2]
[352651135,1739217069184,-500.0,0.00011369,2]
[352651137,1739217069193,-686.24,0.00011369,2]
[352651139,1739217069203,-899.13,0.00011369,2]
[352651141,1739217069212,-752.18,0.00011369,2]
[352651143,1739217069221,-500.0,0.00011369,2]
[352651145,1739217069232,-500.0,0.00011369,2]
[352651147,1739217069242,-500.0,0.00011369,2]
[352651149,1739217069251,-500.0,0.00011369,2]
[352651151,1739217069260,-939.92,0.00011369,2]